fUST/lending_fUST_20240922
["ID","MTS","AMOUNT","RATE_DAILY","PERIOD"]
[338845774,1726939853751,-500.0,0.00014235,2]
[338845775,1726939853760,-500.0,0.00014245,2]
[338845776,1726939853770,-30.81761651,0.00014257,2]
[338845777,1726939853779,-151.0,0.00014257,2]
[338845778,1726939853788,-151.0,0.00014257,2]
[338845779,1726939853798,-151.0,0.00014257,2]
[338845780,1726939853807,-151.0,0.00014257,2]
[338845781,1726939853817,-151.0,0.00014257,2]
[338845782,1726939853828,-151.0,0.00014257,2]
[338845783,1726939853838,-151.0,0.00014257,2]
[338845784,1726939853848,-151.0,0.00014257,2]
[338845785,1726939853858,-151.0,0.00014257,2]
[338845786,1726939853869,-521.73,0.00014257,2]
[338845787,1726939853880,-667.632232,0.00014257,2]
[338845788,1726939853891,-893.298645,0.00014257,2]
[338845789,1726939853902,-893.298645,0.00014257,2]
[338845790,1726939853911,-893.298645,0.00014257,2]
[338845791,1726939853922,-893.298645,0.00014257,2]
[338845792,1726939853931,-6536.268904,0.00014257,2]
[338845793,1726939853940,-6536.268904,0.00014257,2]
[338845794,1726939853950,-6536.268904,0.00014257,2]
[338845795,1726939853959,-6536.268904,0.00014257,2]
[338845796,1726939853969,-6536.268904,0.00014257,2]
[338845797,1726939853980,-312.88252,0.00014257,2]
[338845798,1726939853990,-6536.268904,0.00014257,2]
[338845799,1726939853999,-312.88252,0.00014257,2]
[338845800,1726939854009,-312.88252,0.00014257,2]
[338845801,1726939854018,-312.88252,0.00014257,2]
[338845802,1726939854028,-312.88252,0.00014257,2]
[338845803,1726939854037,-312.88252,0.00014257,2]
[338845804,1726939854047,-151.0,0.00014257,2]
[338845805,1726939854056,-541.786878,0.00014257,2]
[338845806,1726939854067,-541.786878,0.00014257,2]
[338845807,1726939854077,-541.786878,0.00014257,2]
[338845808,1726939854087,-541.786878,0.00014257,2]
[338845809,1726939854096,-731.592398,0.00014257,2]
[338845810,1726939854106,-731.592398,0.00014257,2]
[338845811,1726939854115,-731.592398,0.00014257,2]
[338845812,1726939854125,-731.592398,0.00014257,2]
[338845813,1726939854134,-151.0,0.00014257,2]
[338845814,1726939854144,-151.0,0.00014257,2]
[338845815,1726939854155,-696.430842,0.00014257,2]
[338845816,1726939854165,-211.379143,0.00014257,2]
[338845817,1726939854174,-696.430842,0.00014257,2]
[338845818,1726939854184,-211.379143,0.00014257,2]
[338845819,1726939854195,-656.458989,0.00014257,2]
[338845820,1726939854205,-686.456147,0.00014257,2]
[338845821,1726939854215,-686.456147,0.00014257,2]
[338845822,1726939854228,-656.458989,0.00014257,2]
[338845823,1726939854238,-686.456147,0.00014257,2]
[338845824,1726939854250,-686.456147,0.00014257,2]
[338845825,1726939854260,-151.0,0.00014257,2]
[338845826,1726939854271,-151.0,0.00014257,2]
[338845827,1726939854280,-170.594422,0.00014257,2]
[338845828,1726939854290,-170.594422,0.00014257,2]
[338845829,1726939854300,-170.594422,0.00014257,2]
[338845830,1726939854310,-170.594422,0.00014257,2]
[338845831,1726939854319,-269.300831,0.00014257,2]
[338845832,1726939854331,-269.300831,0.00014257,2]
[338845833,1726939854341,-182.937663,0.00014257,2]
[338845834,1726939854351,-182.937663,0.00014257,2]
[338845835,1726939854361,-182.937663,0.00014257,2]
[338845836,1726939854371,-182.937663,0.00014257,2]
[338845837,1726939854380,-335.895156,0.00014257,2]
[338845838,1726939854390,-335.895156,0.00014257,2]
[338845839,1726939854399,-335.895156,0.00014257,2]
[338845840,1726939854409,-335.895156,0.00014257,2]
[338845841,1726939854419,-2544.75687,0.00014257,2]
[338845842,1726939854428,-2544.75687,0.00014257,2]
[338845843,1726939854438,-2544.75687,0.00014257,2]
[338845844,1726939854451,-2544.75687,0.00014257,2]
[338845845,1726939854460,-808.873015,0.00014257,2]
[338845846,1726939854470,-808.873015,0.00014257,2]
[338845847,1726939854484,-954.784214,0.00014257,2]
[338845848,1726939854494,-1520.107879,0.00014257,2]
[338845849,1726939854505,-808.873015,0.00014257,2]
[338845850,1726939854514,-1520.107879,0.00014257,2]
[338845851,1726939854524,-808.873015,0.00014257,2]
[338845852,1726939854533,-954.784214,0.00014257,2]
[338845853,1726939854543,-1520.107879,0.00014257,2]
[338845854,1726939854554,-1520.107879,0.00014257,2]
[338845855,1726939854563,-454.054014,0.00014257,2]
[338845856,1726939854573,-454.054014,0.00014257,2]
[338845857,1726939854582,-454.054014,0.00014257,2]
[338845858,1726939854592,-454.054014,0.00014257,2]
[338845859,1726939854601,-343.705946,0.00014257,2]
[338845860,1726939854611,-343.705946,0.00014257,2]
[338845861,1726939854621,-151.0,0.00014257,2]
[338845862,1726939854630,-151.0,0.00014257,2]
[338845863,1726939854640,-343.705946,0.00014257,2]
[338845864,1726939854649,-343.705946,0.00014257,2]
[338845865,1726939854659,-151.0,0.00014258,2]
[338845866,1726939854669,-151.0,0.00014258,2]
[338845867,1726939854679,-151.0,0.00014258,2]
[338845868,1726939854689,-151.0,0.00014258,2]
[338845869,1726939854698,-151.0,0.00014258,2]
[338845870,1726939854708,-151.0,0.00014258,2]
[338845871,1726939854717,-151.0,0.00014258,2]
[338845872,1726939854729,-151.0,0.00014258,2]
[338845873,1726939854738,-234.445441,0.00014258,2]
[338845874,1726939854748,-151.0,0.00014258,2]
[338845875,1726939854756,-151.0,0.00014258,2]
[338845876,1726939854765,-860.357507,0.00014258,2]
[338845877,1726939854775,-860.357507,0.00014258,2]
[338845878,1726939854785,-151.0,0.00014258,2]
[338845879,1726939854794,-151.0,0.00014258,2]
[338845880,1726939854805,-220.839319,0.00014258,2]
[338845881,1726939854815,-151.0,0.00014258,2]
[338845882,1726939854825,-220.839319,0.00014258,2]
[338845883,1726939854834,-151.0,0.00014258,2]
[338845884,1726939854844,-151.0,0.00014258,2]
[338845885,1726939854854,-151.0,0.00014258,2]
[338845886,1726939854864,-151.0,0.00014258,2]
[338845887,1726939854873,-151.0,0.00014258,2]
[338845888,1726939854883,-1828.414473,0.00014258,2]
[338845889,1726939854892,-1828.414473,0.00014258,2]
[338845890,1726939854902,-1828.414473,0.00014258,2]
[338845891,1726939854912,-1828.414473,0.00014258,2]
[338845892,1726939854921,-991.561087,0.00014258,2]
[338845893,1726939854930,-991.561087,0.00014258,2]
[338845894,1726939854939,-151.0,0.00014258,2]
[338845895,1726939854949,-151.0,0.00014258,2]
[338845896,1726939854959,-151.0,0.00014258,2]
[338845897,1726939854969,-667.632232,0.00014258,2]
[338845898,1726939854988,-6536.268904,0.00014258,2]
[338845899,1726939854997,-6536.268904,0.00014258,2]
[338845900,1726939855007,-312.88252,0.00014258,2]
[338845901,1726939855018,-312.88252,0.00014258,2]
[338845902,1726939855028,-151.0,0.00014258,2]
[338845903,1726939855039,-696.430842,0.00014258,2]
[338845904,1726939855051,-211.379143,0.00014258,2]
[338845905,1726939855061,-696.430842,0.00014258,2]
[338845906,1726939855070,-211.379143,0.00014258,2]
[338845907,1726939855081,-656.458989,0.00014258,2]
[338845908,1726939855092,-656.458989,0.00014258,2]
[338845909,1726939855103,-151.0,0.00014258,2]
[338845910,1726939855113,-151.0,0.00014258,2]
[338845911,1726939855122,-269.300831,0.00014258,2]
[338845912,1726939855133,-269.300831,0.00014258,2]
[338845913,1726939855143,-954.784214,0.00014258,2]
[338845914,1726939855153,-954.784214,0.00014258,2]
[338845915,1726939855163,-521.73,0.00014265,2]
[338845916,1726939855173,-500.0,0.00014266,2]
[338845917,1726939855182,-500.0,0.00014266,2]
[338845918,1726939855192,-151.0,0.00014266,2]
[338845919,1726939855202,-670.112222,0.00014266,2]
[338845920,1726939855211,-151.0,0.00014267,2]
[338845921,1726939855220,-151.0,0.00014267,2]
[338845922,1726939855234,-151.0,0.00014267,2]
[338845923,1726939855243,-151.0,0.00014267,2]
[338845924,1726939855252,-521.73,0.00014267,2]
[338845925,1726939855263,-521.73,0.00014267,2]
[338845926,1726939855272,-521.73,0.00014267,2]
[338845927,1726939855282,-151.0,0.00014268,2]
[338845928,1726939855291,-151.0,0.00014268,2]
[338845929,1726939855302,-500.0,0.00014273,2]
[338845930,1726939855313,-598.82243702,0.00014273,2]
[338845931,1726939855323,-180.07699,0.00014278,2]
[338845932,1726939855333,-192.906022,0.00014278,2]
[338845933,1726939855344,-180.07699,0.00014278,2]
[338845934,1726939855355,-192.906022,0.00014278,2]
[338845935,1726939855365,-151.0,0.00014278,2]
[338845936,1726939855375,-151.0,0.00014278,2]
[338845937,1726939855384,-600.0,0.00014298,2]
[338845938,1726939855394,-600.0,0.00014298,2]
[338845939,1726939855404,-600.0,0.00014298,2]
[338845940,1726939855413,-600.0,0.00014298,2]
[338845941,1726939855423,-150.112233,0.000143,2]
[338845942,1726939855434,-808.873015,0.00014339,2]
[338845943,1726939855444,-808.873015,0.00014339,2]
[338845944,1726939855459,-454.054014,0.00014339,2]
[338845945,1726939855470,-454.054014,0.00014339,2]
[338845946,1726939855482,-343.705946,0.00014339,2]
[338845947,1726939855493,-151.0,0.00014339,2]
[338845948,1726939855503,-343.705946,0.00014339,2]
[338845949,1726939855512,-600.0,0.00014339,2]
[338845950,1726939855522,-600.0,0.00014339,2]
[338845951,1726939855534,-600.0,0.00014364,2]
[338845952,1726939855546,-600.0,0.00014364,2]
[338845953,1726939855556,-600.0,0.00014364,2]
[338845954,1726939855566,-150.112236,0.000144,2]
[338845955,1726939855575,-150.112233,0.000144,2]
[338845956,1726939855585,-150.112233,0.000144,2]
[338845957,1726939855595,-150.112233,0.000144,2]
[338845958,1726939855606,-281.9303923,0.000144,2]
[338845959,1726939855618,-153.0,0.000144,2]
[338845960,1726939855629,-306.0,0.000144,2]
[338845961,1726939855638,-153.0,0.000144,2]
[338845962,1726939855650,-600.0,0.00014445,2]
[338845963,1726939855661,-510.32658765,0.0001449,2]
[338845964,1726939855671,-500.0,0.0001449,2]
[338845965,1726939855680,-500.0,0.0001449,2]
[338845966,1726939855691,-500.0,0.0001449,2]
[338845967,1726939855702,-500.0,0.0001449,2]
[338845968,1726939855712,-500.0,0.00014498,2]
[338845969,1726939855723,-500.0,0.00014498,2]
[338845970,1726939855732,-606.13,0.00014498,2]
[338845971,1726939855741,-500.0,0.00014498,2]
[338845972,1726939855750,-655.17,0.00014498,2]
[338845973,1726939855759,-500.0,0.00014498,2]
[338845974,1726939855768,-500.0,0.00014498,2]
[338845975,1726939855778,-500.0,0.00014498,2]
[338845976,1726939855787,-500.0,0.00014498,2]
[338845977,1726939855797,-500.0,0.00014498,2]
[338845978,1726939855807,-500.0,0.00014498,2]
[338845979,1726939855817,-500.0,0.00014498,2]
[338845980,1726939855827,-634.75,0.00014498,2]
[338845981,1726939855837,-500.0,0.00014498,2]
[338845982,1726939855847,-500.0,0.00014498,2]
[338845983,1726939855857,-505.36738933,0.00014498,2]
[338845984,1726939855866,-500.0,0.00014498,2]
[338845985,1726939855876,-500.0,0.00014498,2]
[338845986,1726939855886,-500.0,0.00014498,2]
[338845987,1726939855896,-500.0,0.00014498,2]
[338845988,1726939855906,-500.0,0.00014498,2]
[338845989,1726939855916,-500.0,0.00014498,2]
[338845990,1726939855925,-150.112233,0.000145,2]
[338845991,1726939855934,-150.112233,0.000145,2]
[338845992,1726939855945,-150.112233,0.000145,2]
[338845993,1726939855957,-150.112233,0.000145,2]
[338845994,1726939855969,-150.112233,0.000145,2]
[338845995,1726939855981,-150.112233,0.000145,2]
[338845996,1726939855991,-153.0,0.000145,2]
[338845997,1726939856000,-9757.67,0.00014508,2]
[338845998,1726939856010,-1793.69,0.00014508,2]
[338845999,1726939856021,-500.0,0.00014508,2]
[338846000,1726939856031,-500.0,0.00014508,2]
[338846001,1726939856043,-500.0,0.00014508,2]
[338846002,1726939856053,-500.0,0.00014508,2]
[338846003,1726939856063,-500.0,0.00014508,2]
[338846004,1726939856072,-500.0,0.00014508,2]
[338846005,1726939856082,-500.0,0.00014508,2]
[338846006,1726939856092,-500.0,0.00014508,2]
[338846007,1726939856102,-686.456147,0.00014508,2]
[338846008,1726939856111,-500.0,0.00014508,2]
[338846009,1726939856120,-686.456147,0.00014508,2]
[338846010,1726939856130,-500.0,0.00014508,2]
[338846011,1726939856140,-500.0,0.00014508,2]
[338846012,1726939856149,-500.0,0.00014508,2]
[338846013,1726939856159,-1096.19,0.00014508,2]
[338846014,1726939856169,-170.594422,0.00014508,2]
[338846015,1726939856178,-277.43,0.00014508,2]
[338846016,1726939856188,-170.594422,0.00014508,2]
[338846017,1726939856198,-500.0,0.00014508,2]
[338846018,1726939856208,-182.937663,0.00014508,2]
[338846019,1726939856218,-182.937663,0.00014508,2]
[338846020,1726939856228,-500.0,0.00014508,2]
[338846021,1726939856238,-500.0,0.00014508,2]
[338846022,1726939856248,-283.35,0.00014508,2]
[338846023,1726939856258,-500.0,0.00014508,2]
[338846024,1726939856267,-500.0,0.00014508,2]
[338846025,1726939856277,-335.895156,0.00014508,2]
[338846026,1726939856287,-335.895156,0.00014508,2]
[338846027,1726939856297,-523.67,0.00014508,2]
[338846028,1726939856306,-500.0,0.00014508,2]
[338846029,1726939856316,-500.0,0.00014508,2]
[338846030,1726939856325,-2544.75687,0.00014508,2]
[338846031,1726939856334,-2544.75687,0.00014508,2]
[338846032,1726939856344,-500.0,0.00014508,2]
[338846033,1726939856353,-500.0,0.00014508,2]
[338846034,1726939856363,-500.0,0.00014508,2]
[338846035,1726939856374,-1520.107879,0.00014508,2]
[338846036,1726939856384,-500.0,0.00014508,2]
[338846037,1726939856393,-1520.107879,0.00014508,2]
[338846038,1726939856402,-637.64,0.00014508,2]
[338846039,1726939856412,-500.0,0.00014508,2]
[338846040,1726939856422,-1737.45,0.00014508,2]
[338846041,1726939856431,-500.0,0.00014508,2]
[338846042,1726939856442,-500.0,0.00014508,2]
[338846043,1726939856581,-500.0,0.00014508,2]
[338846044,1726939856594,-500.0,0.00014508,2]
[338846045,1726939856605,-500.0,0.00014508,2]
[338846046,1726939856615,-500.0,0.00014508,2]
[338846047,1726939856624,-500.0,0.00014508,2]
[338846048,1726939856633,-500.0,0.00014509,2]
[338846049,1726939856642,-500.0,0.00014509,2]
[338846050,1726939856653,-500.0,0.00014509,2]
[338846051,1726939856662,-500.0,0.00014509,2]
[338846052,1726939856671,-500.0,0.00014509,2]
[338846053,1726939856681,-500.0,0.00014509,2]
[338846054,1726939856690,-500.0,0.00014509,2]
[338846055,1726939856700,-500.0,0.00014509,2]
[338846056,1726939856710,-550.24,0.00014509,2]
[338846057,1726939856719,-500.0,0.00014509,2]
[338846058,1726939856728,-500.0,0.00014509,2]
[338846059,1726939856738,-500.0,0.00014509,2]
[338846060,1726939856747,-500.0,0.00014509,2]
[338846061,1726939856756,-696.39,0.00014509,2]
[338846062,1726939856766,-500.0,0.00014509,2]
[338846063,1726939856775,-500.0,0.00014509,2]
[338846064,1726939856784,-500.0,0.00014509,2]
[338846065,1726939856794,-500.0,0.00014509,2]
[338846066,1726939856803,-500.0,0.00014509,2]
[338846067,1726939856813,-500.0,0.00014509,2]
[338846068,1726939856823,-500.0,0.00014509,2]
[338846069,1726939856832,-500.0,0.00014509,2]
[338846070,1726939856842,-500.0,0.00014509,2]
[338846071,1726939856853,-991.561087,0.00014509,2]
[338846072,1726939856863,-500.0,0.00014509,2]
[338846073,1726939856872,-991.561087,0.00014509,2]
[338846074,1726939856881,-500.0,0.00014509,2]
[338846075,1726939856890,-500.0,0.00014509,2]
[338846076,1726939856899,-500.0,0.00014509,2]
[338846077,1726939856909,-500.0,0.00014509,2]
[338846078,1726939856919,-512.94,0.00014509,2]
[338846079,1726939856929,-429.02533823,0.00014509,2]
[338846080,1726939856938,-151.0,0.00014509,2]
[338846081,1726939856948,-151.0,0.00014509,2]
[338846082,1726939856958,-500.0,0.00014509,2]
[338846083,1726939856968,-151.0,0.00014509,2]
[338846084,1726939856980,-521.73,0.00014509,2]
[338846085,1726939856990,-500.0,0.00014509,2]
[338846086,1726939856999,-500.0,0.00014509,2]
[338846087,1726939857009,-667.632232,0.00014509,2]
[338846088,1726939857018,-500.0,0.00014509,2]
[338846089,1726939857027,-500.0,0.00014509,2]
[338846090,1726939857036,-500.0,0.00014509,2]
[338846091,1726939857046,-500.0,0.00014509,2]
[338846092,1726939857055,-893.298645,0.00014509,2]
[338846093,1726939857064,-500.0,0.00014509,2]
[338846094,1726939857074,-706.24,0.00014509,2]
[338846095,1726939857085,-893.298645,0.00014509,2]
[338846096,1726939857095,-500.0,0.00014509,2]
[338846097,1726939857107,-6536.268904,0.00014509,2]
[338846098,1726939857118,-500.0,0.00014509,2]
[338846099,1726939857130,-6536.268904,0.00014509,2]
[338846100,1726939857140,-312.88252,0.00014509,2]
[338846101,1726939857151,-312.88252,0.00014509,2]
[338846102,1726939857160,-500.0,0.00014509,2]
[338846103,1726939857170,-500.0,0.00014509,2]
[338846104,1726939857179,-500.0,0.00014509,2]
[338846105,1726939857189,-541.786878,0.00014509,2]
[338846106,1726939857199,-541.786878,0.00014509,2]
[338846107,1726939857209,-731.592398,0.00014509,2]
[338846108,1726939857218,-731.592398,0.00014509,2]
[338846109,1726939857229,-221.752684,0.00014509,2]
[338846110,1726939857238,-500.0,0.00014509,2]
[338846111,1726939857248,-500.0,0.00014509,2]
[338846112,1726939857257,-500.0,0.00014509,2]
[338846113,1726939857266,-500.0,0.00014509,2]
[338846114,1726939857276,-500.0,0.00014509,2]
[338846115,1726939857286,-696.430842,0.00014509,2]
[338846116,1726939857297,-500.0,0.00014509,2]
[338846117,1726939857306,-500.0,0.00014509,2]
[338846118,1726939857316,-211.379143,0.00014509,2]
[338846119,1726939857326,-500.0,0.00014509,2]
[338846120,1726939857338,-696.430842,0.00014509,2]
[338846121,1726939857349,-211.379143,0.00014509,2]
[338846122,1726939857359,-500.0,0.00014509,2]
[338846123,1726939857369,-500.0,0.00014509,2]
[338846124,1726939857378,-500.0,0.00014509,2]
[338846125,1726939857387,-500.0,0.00014509,2]
[338846126,1726939857397,-500.0,0.00014509,2]
[338846127,1726939857407,-500.0,0.00014509,2]
[338846128,1726939857418,-500.0,0.00014509,2]
[338846129,1726939857428,-500.0,0.00014509,2]
[338846130,1726939857439,-500.0,0.00014509,2]
[338846131,1726939857451,-500.0,0.00014509,2]
[338846132,1726939857460,-500.0,0.00014509,2]
[338846133,1726939857470,-500.0,0.00014509,2]
[338846134,1726939857479,-500.0,0.00014509,2]
[338846135,1726939857489,-502.94436042,0.00014509,2]
[338846136,1726939857499,-656.458989,0.00014509,2]
[338846137,1726939857509,-500.0,0.00014509,2]
[338846138,1726939857518,-656.458989,0.00014509,2]
[338846139,1726939857530,-500.0,0.00014509,2]
[338846140,1726939857542,-151.0,0.00014509,2]
[338846141,1726939857552,-500.0,0.00014509,2]
[338846142,1726939857561,-203.527372,0.00014509,2]
[338846143,1726939857572,-500.0,0.00014509,2]
[338846144,1726939857581,-500.0,0.00014509,2]
[338846145,1726939857590,-500.0,0.00014509,2]
[338846146,1726939857599,-1048.15,0.00014509,2]
[338846147,1726939857608,-500.0,0.00014509,2]
[338846148,1726939857617,-500.0,0.00014509,2]
[338846149,1726939857626,-269.300831,0.00014509,2]
[338846150,1726939857636,-269.300831,0.00014509,2]
[338846151,1726939857645,-599.25245421,0.00014509,2]
[338846152,1726939857654,-500.0,0.00014509,2]
[338846153,1726939857663,-500.0,0.00014509,2]
[338846154,1726939857672,-500.0,0.00014509,2]
[338846155,1726939857681,-500.0,0.00014509,2]
[338846156,1726939857690,-500.0,0.00014509,2]
[338846157,1726939857699,-500.0,0.00014509,2]
[338846158,1726939857709,-500.0,0.00014509,2]
[338846159,1726939857718,-531.18,0.00014509,2]
[338846160,1726939857728,-500.0,0.00014509,2]
[338846161,1726939857737,-500.0,0.00014509,2]
[338846162,1726939857746,-500.83879302,0.00014509,2]
[338846163,1726939857755,-500.0,0.00014509,2]
[338846164,1726939857764,-464.31,0.00014509,2]
[338846165,1726939857773,-500.0,0.00014509,2]
[338846166,1726939857783,-500.0,0.00014509,2]
[338846167,1726939857792,-500.0,0.00014509,2]
[338846168,1726939857801,-500.0,0.00014509,2]
[338846169,1726939857810,-500.0,0.00014509,2]
[338846170,1726939857819,-500.0,0.00014509,2]
[338846171,1726939857827,-500.0,0.00014509,2]
[338846172,1726939857836,-500.0,0.00014509,2]
[338846173,1726939857845,-500.0,0.00014509,2]
[338846174,1726939857855,-808.873015,0.00014509,2]
[338846175,1726939857864,-954.784214,0.00014509,2]
[338846176,1726939857873,-808.87302,0.00014509,2]
[338846177,1726939857882,-500.0,0.00014509,2]
[338846178,1726939857891,-954.784214,0.00014509,2]
[338846179,1726939857900,-500.0,0.00014509,2]
[338846180,1726939857911,-500.0,0.00014509,2]
[338846181,1726939857922,-500.0,0.00014509,2]
[338846182,1726939857933,-515.71,0.00014509,2]
[338846183,1726939857941,-500.0,0.00014509,2]
[338846184,1726939857953,-454.054014,0.00014509,2]
[338846185,1726939857963,-500.0,0.00014509,2]
[338846186,1726939857972,-454.054006,0.00014509,2]
[338846187,1726939857983,-500.0,0.00014509,2]
[338846188,1726939857992,-343.705946,0.00014509,2]
[338846189,1726939858001,-289.34032142,0.00014509,2]
[338846190,1726939858012,-151.0,0.00014509,2]
[338846191,1726939858023,-500.0,0.00014509,2]
[338846192,1726939858033,-343.705954,0.00014509,2]
[338846193,1726939858042,-500.0,0.00014509,2]
[338846194,1726939858052,-151.0,0.0001451,2]
[338846195,1726939858063,-151.0,0.0001451,2]
[338846196,1726939858073,-151.0,0.0001451,2]
[338846197,1726939858082,-191.945379,0.0001451,2]
[338846198,1726939858091,-151.0,0.0001451,2]
[338846199,1726939858100,-151.0,0.0001451,2]
[338846200,1726939858109,-860.357507,0.0001451,2]
[338846201,1726939858118,-860.357507,0.0001451,2]
[338846202,1726939858128,-860.357507,0.0001451,2]
[338846203,1726939858137,-860.357507,0.0001451,2]
[338846204,1726939858146,-151.0,0.0001451,2]
[338846205,1726939858155,-151.0,0.0001451,2]
[338846206,1726939858164,-151.0,0.0001451,2]
[338846207,1726939858173,-292.169467,0.0001451,2]
[338846208,1726939858183,-220.839319,0.0001451,2]
[338846209,1726939858192,-220.839319,0.0001451,2]
[338846210,1726939858201,-151.0,0.0001451,2]
[338846211,1726939858211,-151.0,0.0001451,2]
[338846212,1726939858219,-220.839319,0.0001451,2]
[338846213,1726939858230,-220.839319,0.0001451,2]
[338846214,1726939858239,-151.0,0.0001451,2]
[338846215,1726939858248,-202.279655,0.0001451,2]
[338846216,1726939858257,-151.0,0.0001451,2]
[338846217,1726939858267,-151.0,0.0001451,2]
[338846218,1726939858279,-1828.414473,0.0001451,2]
[338846219,1726939858291,-1828.414473,0.0001451,2]
[338846220,1726939858303,-991.561087,0.0001451,2]
[338846221,1726939858314,-991.561087,0.0001451,2]
[338846222,1726939858324,-151.0,0.0001451,2]
[338846223,1726939858335,-151.0,0.0001451,2]
[338846224,1726939858345,-151.0,0.0001451,2]
[338846225,1726939858355,-521.73,0.0001451,2]
[338846226,1726939858365,-667.632232,0.0001451,2]
[338846227,1726939858374,-6536.268904,0.0001451,2]
[338846228,1726939858383,-6536.268904,0.0001451,2]
[338846229,1726939858392,-312.88252,0.0001451,2]
[338846230,1726939858401,-312.88252,0.0001451,2]
[338846231,1726939858412,-686.456147,0.0001451,2]
[338846232,1726939858425,-686.456149,0.0001451,2]
[338846233,1726939858438,-170.594422,0.0001451,2]
[338846234,1726939858450,-170.594419,0.0001451,2]
[338846235,1726939858459,-182.937663,0.0001451,2]
[338846236,1726939858468,-182.937663,0.0001451,2]
[338846237,1726939858478,-335.895156,0.0001451,2]
[338846238,1726939858492,-335.895156,0.0001451,2]
[338846239,1726939858502,-2544.75687,0.0001451,2]
[338846240,1726939858511,-2544.756873,0.0001451,2]
[338846241,1726939858521,-1520.107879,0.0001451,2]
[338846242,1726939858533,-1520.107879,0.0001451,2]
[338846243,1726939858543,-151.0,0.00014511,2]
[338846244,1726939858554,-151.0,0.00014511,2]
[338846245,1726939858563,-860.357507,0.00014511,2]
[338846246,1726939858572,-860.357507,0.00014511,2]
[338846247,1726939858582,-151.0,0.00014511,2]
[338846248,1726939858591,-151.0,0.00014511,2]
[338846249,1726939858600,-1828.414473,0.00014511,2]
[338846250,1726939858609,-1828.414473,0.00014511,2]
[338846251,1726939858618,-991.561087,0.00014511,2]
[338846252,1726939858627,-991.561087,0.00014511,2]
[338846253,1726939858636,-151.0,0.00014511,2]
[338846254,1726939858645,-151.0,0.00014511,2]
[338846255,1726939858655,-151.0,0.00014511,2]
[338846256,1726939858664,-667.632232,0.00014511,2]
[338846257,1726939858674,-6536.268904,0.00014511,2]
[338846258,1726939858683,-6536.268904,0.00014511,2]
[338846259,1726939858692,-312.88252,0.00014511,2]
[338846260,1726939858701,-312.88252,0.00014511,2]
[338846261,1726939858709,-160.0,0.00014518,2]
[338846262,1726939858719,-500.0,0.00014519,2]
[338846263,1726939858730,-500.0,0.00014519,2]
[338846264,1726939858739,-500.0,0.00014519,2]
[338846265,1726939858747,-500.0,0.00014519,2]
[338846266,1726939858756,-531.2,0.00014519,2]
[338846267,1726939858766,-500.0,0.00014519,2]
[338846268,1726939858775,-500.0,0.00014519,2]
[338846269,1726939858785,-500.0,0.00014519,2]
[338846270,1726939858794,-500.0,0.00014519,2]
[338846271,1726939858804,-502.26652324,0.00014519,2]
[338846272,1726939858813,-500.0,0.00014519,2]
[338846273,1726939858822,-500.0,0.00014519,2]